Cogmind - Beta 16.1 @@@ ROGUE MODE // 2026.02.25 @ 17:24:34 Player: delto Result: Destroyed by D-53 Grenadier with Mini Grenade Launcher Performance ------------- Evolutions (0) 0 Regions Visited (2) 400 Robots Destroyed (12) 60 Value Destroyed (178) 178 Prototype IDs (1) 20 Alien Tech Used (0) 0 Bonus (25) 25 TOTAL SCORE: 683 Bonus ------- Follower Combat Kills 25 Cogmind --------- Core Integrity 0/250 Matter 275/300 Energy 54/125 System Corruption 0% Temperature Cool (2) Movement Flying (40) Location -10/Mines Parts ------- > --- POWER (1) -------- Light Ion Engine > --- PROPULSION (2) --- Flight Unit > --- UTILITY (2) ------ (None) > --- WEAPON (2) ------- (None) > --- INVENTORY (5) ---- (None) Peak State ------------ > --- POWER ------------ Light Ion Engine > --- PROPULSION ------- Flight Unit Flight Unit > --- UTILITY ---------- Decoy Drone Bay > --- WEAPON ----------- Light Assault Rifle Light Assault Rifle > --- INVENTORY -------- Light Ion Engine Flight Unit Flight Unit Flight Unit Flight Unit [Rating: 19] Favorites ----------- Power Light Ion Engine Engine Light Ion Engine Power Core Light Nuclear Core Propulsion Flight Unit Treads Light Treads Wheel Wheel Flight Unit Flight Unit Utility Visual Processing Unit Device Tractor Beam Storage Small Storage Unit Processor Visual Processing Unit Weapon Light Assault Rifle Ballistic Gun Light Assault Rifle Special Weapon Mining Laser Build | -11 -10 -10 ------- Run | Yrd Mat Min Slots Evolved . | . . . Power . | . . . Propulsion . | . . . Utility . | . . . Weapon . | . . . Parts Attached 23 | 7 9 7 Power 5 | 1 2 2 Engine 4 | 1 1 2 Core 1 | . 1 . Reactor . | . . . Propulsion 8 | 2 2 4 Treads 1 | 1 . . Leg . | . . . Wheel 1 | 1 . . Hover . | . . . Flight 6 | . 2 4 Utility 5 | 2 2 1 Device 2 | 1 . 1 Storage 1 | 1 . . Processor 2 | . 2 . Hackware . | . . . Protection . | . . . Artifact . | . . . Weapon 5 | 2 3 . Energy Gun . | . . . Energy Cannon . | . . . Ballistic Gun 4 | 2 2 . Ballistic Cannon . | . . . Launcher . | . . . Special Weapon 1 | . 1 . Impact Weapon . | . . . Slashing Weapon . | . . . Piercing Weapon . | . . . Special Melee Weapon . | . . . Unidentified Prototypes 1 | . . 1 Parts Lost 10 | . 1 9 Power 3 | . 1 2 Propulsion 5 | . . 5 Utility . | . . . Weapon 2 | . . 2 Highest Loss Streak 9 | . 1 9 To Critical Strikes . | . . . Average Backups 4 | 1 4 4 Power . | . . . Propulsion 2 | 1 3 3 Utility . | . . . Weapon . | . . . Tool/Special . | . . . Unused Backups 7 | . 7 . Power 1 | . 1 . Propulsion 2 | . 2 . Utility 2 | . 2 . Weapon 2 | . 2 . Tool/Special . | . . . Average Slot Usage (%) 96 | . 99 86 Engine 10 | . 9 14 Core 3 | . 4 . Treads 3 | . 4 . Wheel 3 | . 4 . Flight 21 | . 19 28 Device 4 | . 4 3 Processor 20 | . 22 13 Ballistic Gun 26 | . 27 26 Peak Build Rating 19 | 7 10 19 Average Rating 8 | 5 8 10 On Entrance 5 | . 7 8 Avg Prop Armor Cover (%) 11 | 14 8 . Naked Turns . | . . . Heaviest Build 15 | 15 15 5 Greatest Support 20 | 20 20 8 Greatest Overweight (x) 1 | 1 1 . Average Overweight (x) . | . . . Largest Inventory Capacity 8 | 8 8 5 Average Capacity 5 | 7 5 5 Most Carried 5 | 3 5 5 Average Carried 4 | 2 4 4 Final Capacity 8 | 8 5 5 Final Carried 5 | 3 5 . Class Distribution -------------------- 67% | Scavenger-Mutant 32% | Mutant Dominant Class ---------------- Scavenger-Mutant | -10/Materials Scavenger-Mutant | -10/Mines Resources | -11 -10 -10 ----------- Run | Yrd Mat Min Matter Collected 585 | 300 265 20 Remotely 365 | 193 172 . Salvage Created 297 | 93 204 . Parts 19 | 3 16 . Haulers Intercepted . | . . . Recyclers Shooed . | . . . Parts Field Recycled . | . . . Retrieved Matter . | . . . Parts Self-Destructed . | . . . Prevented . | . . . Parts Restored . | . . . Kills | -11 -10 -10 ------- Run | Yrd Mat Min Combat Hostiles Destroyed 8 | . 8 . Guns 8 | . 8 . Classes Destroyed 5 | 1 4 . Recycler 1 | 1 . . Operator 1 | . 1 . Watcher 2 | . 2 . Swarmer 7 | . 7 . Grunt 1 | . 1 . Best Kill Streak 5 | 1 5 . Combat Bots Only 5 | . 5 . Max Kills in Single Turn 1 | 1 1 . Gunslinging . | . . . Exploded . | . . . Melee . | . . . Uniques/NPCs Destroyed . | . . . Combat | -11 -10 -10 -------- Run | Yrd Mat Min Hostile Shots Fired 69 | . 50 19 Missed 17 | . 12 5 Hits 52 | . 38 14 Projectile 52 | . 38 14 AOE 11 | . . 11 Damage Taken 788 | . 331 457 Core 269 | . 98 171 Absorbed by Shields . | . . . Core Remaining (%) 100 | 100 . . Volleys Fired 53 | 5 48 . Largest 2 | 2 2 . Hottest 100 | 40 100 . Shots Fired 105 | 10 95 . Gun 104 | 10 94 . Cannon . | . . . Launcher . | . . . Special 1 | . 1 . Kinetic 104 | 10 94 . Thermal 1 | . 1 . Explosive . | . . . Electromagnetic . | . . . Robot Hit Streak 6 | 4 6 . Robot Miss Streak 4 | 1 4 . Penetration Max . | . . . Secondary Targets 3 | . 3 . Max Gunslinging Chain 1 | . 1 . Shots Hit Robots 62 | 6 56 . Core Hits 24 | 2 22 . Critical Kills . | . . . Critical Parts Destroyed 1 | . 1 . Critical Strikes 1 | . 1 . Destroy 1 | . 1 . Melee Attacks . | . . . Impact . | . . . Slashing . | . . . Piercing . | . . . Sneak Attacks . | . . . Combat Hostiles . | . . . Follow-up Attacks . | . . . Damage Inflicted 638 | 85 553 . Guns 638 | 85 553 . Cannons . | . . . Explosions . | . . . Melee . | . . . Ramming . | . . . Kinetic 638 | 85 553 . Thermal . | . . . Explosive . | . . . Electromagnetic . | . . . Impact . | . . . Slashing . | . . . Piercing . | . . . Highest Corruption . | . . . Average Corruption . | . . . Corruption Purged . | . . . Corruption Blocked . | . . . Overload Shots . | . . . Overflow Damage . | . . . Projectiles . | . . . Explosions . | . . . Melee . | . . . Knockbacks . | . . . Impact . | . . . Kinetic . | . . . Secondary . | . . . Self-Inflicted Damage . | . . . Shots . | . . . Rammed . | . . . Targets Rammed . | . . . Kicked . | . . . Crushed . | . . . Highest Temperature 36 | . 36 . Average Temperature 7 | . 7 . Received Heat Transfer 75 | . 42 33 Siege Activations . | . . . Martial Activations . | . . . Shielding Activations . | . . . Robots Disrupted . | . . . Combat Hostiles . | . . . Robots Corrupted . | . . . Combat Hostiles . | . . . Parts Fried . | . . . Impact Corruptions . | . . . Robots Melted . | . . . Combat Hostiles . | . . . Parts Melted . | . . . Heat Transferred . | . . . Parts Sabotaged . | . . . Parts Stolen . | . . . Parts Stripped . | . . . Power Chain Reactions . | . . . Alert | -11 -10 -10 ------- Run | Yrd Mat Min Maximum Alert Level 1 | . 1 . Low Security (%) 72 | 100 60 100 Level 1 27 | . 39 . Level 2 . | . . . Level 3 . | . . . Level 4 . | . . . Level 5 . | . . . High Security . | . . . Max Security . | . . . Peak Influence 282 | 5 282 90 Initial 90 | . . 90 Average 110 | . 144 55 Influence Increases 493 | 5 488 . Destroy 0b10 Robot/C 280 | . 280 . Destroy 0b10 Robot/NC 20 | 5 15 . Destroy Leader 54 | . 54 . Allied During Kill 7 | . 7 . Successful Hack 12 | . 12 . Disable Machine 30 | . 30 . Lose Combat Pursuer 90 | . 90 . Influence Decreases 493 | 5 255 233 Entered New Map 143 | . . 143 Time Decay 290 | 5 225 60 Lost Part 30 | . 10 20 Lost Ally 30 | . 20 10 Squads Dispatched 3 | . 3 . Investigation 1 | . 1 . Extermination . | . . . Reinforcement 2 | . 2 . Assault . | . . . Garrison . | . . . Intercept . | . . . Searches Triggered . | . . . Construction Impeded . | . . . Haulers Reinforced . | . . . Active Scanning Responses . | . . . Cargo Convoy Interrupts . | . . . Stealth | -11 -10 -10 --------- Run | Yrd Mat Min Distress Signals 1 | . 1 . Communications Jammed . | . . . Distress Signals . | . . . Times Spotted 29 | . 25 4 Peak Tracking Total 6 | . 6 4 Tactical Retreats 3 | . 3 . Traps | -11 -10 -10 ------- Run | Yrd Mat Min Traps Triggered 1 | . 1 . Indirectly . | . . . Trap Hack Attempts . | . . . Triggered . | . . . Disarmed . | . . . Reprogrammed . | . . . Reused . | . . . Traps Extracted . | . . . Installed . | . . . Triggered . | . . . Machines | -11 -10 -10 ---------- Run | Yrd Mat Min Machines Disabled 2 | . 2 . Max in Single Turn . | . . . Machines Repaired . | . . . Machines Dismantled . | . . . Machines Sabotaged . | . . . Overloaded Fab Kills . | . . . Hacking | -11 -10 -10 --------- Run | Yrd Mat Min Machines Accessed 3 | . 2 1 Terminals 1 | . 1 . Fabricators . | . . . Repair Stations . | . . . Recycling Units 1 | . 1 . Scanalyzers . | . . . Garrison Access . | . . . Total Hacks 5 | . 4 1 Successful 5 | . 4 1 Failed . | . . . Catastrophic . | . . . Database Lockouts . | . . . Manual 4 | . 4 . Terminals 2 | . 2 . Fabricators . | . . . Repair Stations . | . . . Recycling Units 2 | . 2 . Scanalyzers . | . . . Garrison Access . | . . . Terminal Hacks 2 | . 1 1 Open Door 1 | . . 1 Branch Access Points 1 | . 1 . Fabricator Hacks . | . . . Repair Station Hacks . | . . . Recycling Unit Hacks . | . . . Scanalyzer . | . . . Garrison Access Hacks . | . . . Unauthorized Hacks 3 | . 3 . Terminals 1 | . 1 . Botnet 1 | . 1 . Fabricators . | . . . Repair Stations . | . . . Recycling Units 2 | . 2 . Reject 1 | . 1 . Mask 1 | . 1 . Scanalyzers . | . . . Garrison Access . | . . . Data Cores Recovered . | . . . Used . | . . . Hacking Detections 1 | . 1 . Full Trace Events . | . . . Feedback Events . | . . . Feedback Blocked . | . . . Robot Schematics Acquired . | . . . Robots Built . | . . . Authchips . | . . . Time . | . . . Total Robot Build Rating . | . . . Part Schematics Acquired . | . . . Parts Built . | . . . Authchips . | . . . Time . | . . . Total Part Build Rating . | . . . Part Studies Acquired . | . . . Parts Repaired . | . . . Time . | . . . Parts Recycled . | . . . Recycled Matter . | . . . Retrieved Matter . | . . . Retrieved Components . | . . . Parts Scanalyzed . | . . . Part Schematics Acquired . | . . . Parts Damaged . | . . . Bothacking | -11 -10 -10 ------------ Run | Yrd Mat Min Used RIF Installer . | . . . Robots Hacked . | . . . Non-combat . | . . . Combat . | . . . Robot Hacks Applied . | . . . Relay Couplers Released . | . . . Fabnet Peak Effective % . | . . . Robots Rewired . | . . . Allies Hacked . | . . . Hacks Repelled . | . . . Allies | -11 -10 -10 -------- Run | Yrd Mat Min Total Allies 2 | 1 1 . Largest Group 1 | 1 1 1 Highest-Rated Group 29 | 29 29 29 Highest-Rated Ally 29 | 29 29 29 Total Orders 3 | . . 3 EXPLORE 3 | . . 3 Ally Attacks 34 | . 34 . Total Damage 449 | . 449 . Kills 6 | . 6 . Allies Corrupted . | . . . Allies Melted . | . . . Intel | -11 -10 -10 ------- Run | Yrd Mat Min Active Infowar (turns) 544 | . 484 60 Optics 544 | . 484 60 Robot Analysis Total . | . . . Derelict Logs Recovered 2 | . . 2 Drone Launches 16 | . . 16 Drone Recoveries . | . . . Exploration | -11 -10 -10 ------------- Run | Yrd Mat Min Turns Passed 739 | 89 510 140 Spaces Moved 942 | 64 637 241 Core 4 | 4 . . Treads 33 | 5 28 . Legs . | . . . Wheels 105 | 55 50 . Hover . | . . . Flight 800 | . 559 241 Fastest Speed 37 | 50 37 37 Average Speed 47 | 92 46 37 Slowest Speed 160 | 160 160 37 Overloaded Moves . | . . . Propulsion Burnouts . | . . . Robots Hopped 14 | . 12 2 Potential Cave-ins . | . . . Cave-ins Triggered . | . . . Exploration Rate (%) 47 | 4 60 78 Regions Visited 2 Branch Regions 1 Pre-discovered Areas . | . . . Known Exits Taken 1 | . 1 . Unknown Exits Taken 1 | 1 . . Scrap Searched 2 | . . 2 Spaces Dug . | . . . Terrain Destroyed . | . . . Melee . | . . . Projectile . | . . . AOE . | . . . Terrain Rammed . | . . . Walls Destroyed . | . . . Machines Disabled . | . . . Actions | -11 -10 -10 --------- Run | Yrd Mat Min Total 1131 | 81 759 291 Wait 83 | . 42 41 Move 913 | 63 613 237 Hop 13 | . 11 2 Pick Up 20 | 4 15 1 Fast Attach 13 | 7 5 1 Attach 6 | . . 6 Detach 5 | . 3 2 Swap 5 | . 5 . Drop 20 | 2 17 1 Fire 53 | 5 48 . Melee . | . . . Ram . | . . . Kick . | . . . Crush . | . . . Escape Stasis . | . . . Rewire . | . . . Trap . | . . . Miscellaneous . | . . . Route ------- -11/Scrapyard -10/Materials (discovered 4 exits: [*Mat x2] / *Min / [*Sub]) -10/Mines History --------- Turn | Location | Event 22 | -11/Scrapyard | Discovered new exit (range 15) 45 | -11/Scrapyard | Found Botcube 48 | -11/Scrapyard | Botcube activated 58 | -11/Scrapyard | Botcube completed mutation into legged form, armed with 1 gun. 90 | -11/Scrapyard | Entered Materials 90 | -10/Materials | Accompanied by 1 ally 257 | -10/Materials | Botcube activated 336 | -10/Materials | Discovered new exit (range 9) 461 | -10/Materials | Discovered new exit (range 18) 527 | -10/Materials | Discovered new exit (range 8) 532 | -10/Materials | Discovered new exit (range 6) 535 | -10/Materials | Identified exit to Mines 536 | -10/Materials | Build established: Scavenger-Mutant 600 | -10/Materials | Entered Mines 600 | -10/Mines | Accompanied by 1 ally 609 | -10/Mines | Learned 4 Materials zone layouts 646 | -10/Mines | Met a Derelict bent on vengeance 654 | -10/Mines | Learned Materials terminal intel 660 | -10/Mines | Found the Drone Emporium 661 | -10/Mines | Found Prototype Device 661 | -10/Mines | Identified Decoy Drone Bay 716 | -10/Mines | Assembled infested the area 720 | -10/Mines | Lost 4 allies 733 | -10/Mines | Core integrity fell below 50% 738 | -10/Mines | Core integrity fell below 20% 740 | -10/Mines | Destroyed by D-53 Grenadier with Mini Grenade Launcher Last Messages --------------- 00730_ R-06 Scavenger collects Aluminum Leg. 00731_ Searching scrap... 00731_ Found 63 Matter. 00731_ Found Hcp. Matter Pod. 00731_ Found Propulsion Shielding. 00731_ Found Sml. Matter Pod. 00731_ Found 40 Matter. 00731_ Acquired 10 matter. 00732_ K-01 Serf collects debris. 00732_ Acquired Lgt. Ion Engine. 00732_ R-06 Scavenger destroyed. 00732_ U-05 Engineer destroyed. 00733_ Lgt. Ion Engine destroyed. 00733_ Flight Unit destroyed. 00735_ K-01 Serf collects debris. 00735_ Lgt. Ion Engine destroyed. 00737_ Lgt. Assault Rifle destroyed. 00739_ Flight Unit destroyed. 00739_ Lgt. Assault Rifle destroyed. 00740_ Flight Unit destroyed. Map ----- +----------------------------------------------------+ | ???????# ## ##??????????????????????? | | ???????# #??????????????????????? | | ???????# % ## #??????????????????????? | | ???????## ## ##??????????????????????? | | ????????## ### ##???????????????????????? | | ##??????## ### ###????????????????????????? | | #?????## #####??????????????????????????? | | #?????# #??????????????????????????????? | | #?????# #??????????????###?????????????? | | ##????# ############# ?????????????? | | ##???# # # #???????????????? | | #??# ??????????????????? | | #?# #?????????????????????? | | # #?## ####??????????????????? | | ?# ##??## ## #??????????????????? | | ??###????## #### g## #??????????????????? | | ??????????##### # #??????????????????? | | ????????????### #??????????????????? | | ????????????# ##?????????????????? | | ????????????# ## #?????????????????? | | ??????? ##??# ### #?????????????????? | | ????? #??#%#?# d #?????????????????? | | ### #??# #?# d #?????????????????? | | % #??# #?## % #?????????????????? | | ### #? #??# ! #?????????????????? | | ????? $ ??# =% @ ##?????????????????? | | ??????? ! ##??????????????????? | | ????????? ??????????????????? | | ?????????? # #### #????????????????? | | ???????????## #??## ???????????????? | | ????????????? ????# ??????????????? | | ????????????? ????## #?????????????? | | ????????????? ?????#### ### ##??????????????? | | ?????????????#????????## #?? #???????????????? | | ???????????????????????# #???#???????????????? | | ??????????????????????? ???????????????????? | | ??????????????????????? #???????????????????? | | ??????????????????????? ????????????????????? | | ??????????????????????? ????????????????????? | | ??????????????????????? #????????????????????? | | ??????????????????????? #?????????????????????? | | ??????????????????????????????????????????????? | | ??????????????????????????????????????????????? | | | | | | | | | | | | | | | +----------------------------------------------------+ Best States ------------- Heat Dissipation 25 Energy Generation 14 Energy Capacity 250 Matter Stores 300 Matter Capacity 300 Sight Range 18 Terrain Scan Density 10 Evasion (%) 62 Targeting Accuracy 5 Recoil Reduction 1 Item Schematics ----------------- None Robot Schematics ------------------ None Fabricated ------------ Nothing Repaired ---------- Nothing Studied --------- None Alien Tech Used ----------------- None Achievements -------------- None Challenges ------------ None Game ------ Seed ArcNeutrinoSystem Manual? 0 Play Time 00:12:43 Cumulative 124.5 hours Start 2026.02.25 @ 17:13:56 End 2026.02.25 @ 17:24:34 Sessions 1 Manual Loads 0 Difficulty Rogue Special Mode None Game No. 150 Rogue 150 Adventurer 0 Explorer 0 Win Type - Total 1 Types 1/0/0/0/0/0/0/0/0/0 Lore% 27 Gallery% 46 Achievement% 32 Wizard Run 0 Options --------- Layout 0 ASCII 0 Keyboard 0 Movement Mouse Keybinds 0 Fullscreen 1 Font 24/Smallcaps Map View 76x50 Zoom Use 0% Tactical HUD 1 Map Filters NONE Filters NONE Steam 1 RUN: 915b45ff-e6f1-4514-9702-b23a86b22e87